[Event "Live Chess"]
[Site "Chess.com"]
[Date "2024.06.01"]
[Round "-"]
[White "gunslinger222"]
[Black "Golden_Plans"]
[Result "0-1"]
[WhiteElo "2257"]
[BlackElo "2246"]
[TimeControl "300"]
[EndTime "11:53:12 PDT"]
[Termination "Golden_Plans won by resignation"]

1. c4 {[%clk 0:04:57.6]} 1... Nf6 {[%clk 0:04:57]} 2. Nc3 {[%clk 0:04:57.2]}
2... e5 {[%clk 0:04:55.5]} 3. d3 {[%clk 0:04:54.9]} 3... Nc6 {[%clk 0:04:54.5]}
4. Nf3 {[%clk 0:04:53.9]} 4... Bc5 {[%clk 0:04:53.5]} 5. g3 {[%clk 0:04:51.8]}
5... a6 {[%clk 0:04:51.6]} 6. Bg2 {[%clk 0:04:51.1]} 6... h5 {[%clk 0:04:48.9]}
7. O-O {[%clk 0:04:50.7]} 7... d6 {[%clk 0:04:48.1]} 8. Bg5 {[%clk 0:04:48.3]}
8... Ne7 {[%clk 0:04:46.3]} 9. Bxf6 {[%clk 0:04:36]} 9... gxf6 {[%clk
0:04:44.4]} 10. Ne4 {[%clk 0:04:35.3]} 10... Ng6 {[%clk 0:04:40.4]} 11. Nxc5
{[%clk 0:04:26]} 11... dxc5 {[%clk 0:04:40.3]} 12. h4 {[%clk 0:04:25.4]} 12...
Rb8 {[%clk 0:04:33.7]} 13. Rc1 {[%clk 0:04:22]} 13... b6 {[%clk 0:04:25.7]} 14.
a3 {[%clk 0:04:07.5]} 14... Bb7 {[%clk 0:04:20.7]} 15. b4 {[%clk 0:04:02.1]}
15... cxb4 {[%clk 0:04:17]} 16. axb4 {[%clk 0:04:02]} 16... f5 {[%clk
0:04:14.1]} 17. c5 {[%clk 0:03:55.9]} 17... Bd5 {[%clk 0:04:07.5]} 18. e4 {[%clk
0:03:45.5]} 18... fxe4 {[%clk 0:03:59.3]} 19. dxe4 {[%clk 0:03:45.4]} 19... Bxe4
{[%clk 0:03:59.2]} 20. Qa4+ {[%clk 0:02:48.3]} 20... Qd7 {[%clk 0:03:49.6]} 21.
Qxd7+ {[%clk 0:02:35.4]} 21... Kxd7 {[%clk 0:03:48.2]} 22. Nxe5+ {[%clk
0:02:31.8]} 22... Nxe5 {[%clk 0:03:45.3]} 23. Bxe4 {[%clk 0:02:31.7]} 23... bxc5
{[%clk 0:03:43.9]} 24. bxc5 {[%clk 0:02:29.9]} 24... Rb4 {[%clk 0:03:41.8]} 25.
Rfd1+ {[%clk 0:02:25]} 25... Ke7 {[%clk 0:03:39.8]} 26. Bg2 {[%clk 0:02:15.6]}
26... Rhb8 {[%clk 0:03:33.6]} 27. f4 {[%clk 0:02:01.3]} 27... Ng4 {[%clk
0:03:30.8]} 28. Bc6 {[%clk 0:01:59.9]} 28... Rb3 {[%clk 0:03:27.4]} 29. Rd7+
{[%clk 0:01:46.7]} 29... Kf6 {[%clk 0:03:20.7]} 30. Kg2 {[%clk 0:01:46.6]} 30...
Re8 {[%clk 0:03:16.5]} 31. Rd6+ {[%clk 0:01:39.2]} 31... cxd6 {[%clk 0:03:12]}
32. Bxe8 {[%clk 0:01:38.1]} 32... dxc5 {[%clk 0:03:11.2]} 33. Rxc5 {[%clk
0:01:36.2]} 33... Rb2+ {[%clk 0:03:10.7]} 34. Kf3 {[%clk 0:01:30.8]} 34... Rf2+
{[%clk 0:03:05.3]} 35. Ke4 {[%clk 0:01:29.7]} 35... Re2+ {[%clk 0:03:04.9]} 36.
Kf3 {[%clk 0:01:27.5]} 36... Rxe8 {[%clk 0:03:04.8]} 37. Rc6+ {[%clk 0:01:26.2]}
37... Re6 {[%clk 0:03:03.7]} 38. Rc5 {[%clk 0:01:25.3]} 38... Re3+ {[%clk
0:03:02.1]} 39. Kg2 {[%clk 0:01:24.1]} 39... Ra3 {[%clk 0:03:01.1]} 40. Rxh5
{[%clk 0:01:22.6]} 40... a5 {[%clk 0:02:58.8]} 41. Rg5 {[%clk 0:01:21.7]} 41...
Ne3+ {[%clk 0:02:56.5]} 42. Kf2 {[%clk 0:01:19.2]} 42... a4 {[%clk 0:02:53.7]}
43. h5 {[%clk 0:01:18.4]} 43... Nf5 {[%clk 0:02:49.7]} 44. g4 {[%clk 0:01:14.5]}
44... Nd4 {[%clk 0:02:48.7]} 45. h6 {[%clk 0:01:10]} 45... Rh3 {[%clk
0:02:45.2]} 46. Ra5 {[%clk 0:01:07.1]} 46... a3 {[%clk 0:02:41.7]} 47. h7 {[%clk
0:01:02.1]} 47... Ne6 {[%clk 0:02:23.6]} 48. Rxa3 {[%clk 0:00:52.1]} 48... Rxh7
{[%clk 0:02:21.5]} 49. Kg3 {[%clk 0:00:49.2]} 49... Rh8 {[%clk 0:02:17.3]} 50.
Ra5 {[%clk 0:00:45.9]} 50... Rh1 {[%clk 0:02:11.7]} 51. g5+ {[%clk 0:00:45]}
51... Kg7 {[%clk 0:02:09.9]} 52. Kg4 {[%clk 0:00:40.5]} 52... Rg1+ {[%clk
0:02:08.1]} 53. Kf5 {[%clk 0:00:39.5]} 53... Rf1 {[%clk 0:02:06]} 54. Ra4 {[%clk
0:00:38.7]} 54... Rd1 {[%clk 0:01:59.1]} 55. Ke5 {[%clk 0:00:30.5]} 55... Nc5
{[%clk 0:01:52.7]} 56. Ra5 {[%clk 0:00:26]} 56... Re1+ {[%clk 0:01:49.2]} 57.
Kf5 {[%clk 0:00:24.6]} 57... Nd3 {[%clk 0:01:47]} 58. Ra7 {[%clk 0:00:20.7]}
58... Rf1 {[%clk 0:01:45.4]} 59. Ra4 {[%clk 0:00:19.5]} 59... Rf2 {[%clk
0:01:43.1]} 60. Rd4 {[%clk 0:00:18.6]} 60... Nc5 {[%clk 0:01:39.3]} 61. Rd5
{[%clk 0:00:17.2]} 61... Ne6 {[%clk 0:01:38.2]} 62. Rd7 {[%clk 0:00:14.4]} 62...
Rxf4+ {[%clk 0:01:37.3]} 63. Ke5 {[%clk 0:00:14]} 63... Rg4 {[%clk 0:01:35.4]}
64. g6 {[%clk 0:00:11.7]} 64... Rxg6 {[%clk 0:01:34.5]} 65. Re7 {[%clk
0:00:10.5]} 65... Rg5+ {[%clk 0:01:33.1]} 0-1

[Event "Live Chess"]
[Site "Chess.com"]
[Date "2024.06.01"]
[Round "-"]
[White "Bob2pen"]
[Black "FortunatusMax"]
[Result "1-0"]
[WhiteElo "1892"]
[BlackElo "914"]
[TimeControl "300"]
[EndTime "11:53:35 PDT"]
[Termination "Bob2pen won on time"]

1. e4 {[%clk 0:04:56.5]} 1... e6 {[%clk 0:04:36.6]} 2. d4 {[%clk 0:04:54.7]}
2... d5 {[%clk 0:04:30]} 3. Nc3 {[%clk 0:04:53.2]} 3... Nf6 {[%clk 0:04:26.5]}
4. Bg5 {[%clk 0:04:51.4]} 4... h6 {[%clk 0:04:24.6]} 5. Bxf6 {[%clk 0:04:45.3]}
5... Qxf6 {[%clk 0:04:22.8]} 6. e5 {[%clk 0:04:44.1]} 6... Qg5 {[%clk
0:04:13.4]} 7. Nf3 {[%clk 0:04:41.4]} 7... Qf5 {[%clk 0:04:07.4]} 8. Bd3 {[%clk
0:04:38.4]} 8... Qg4 {[%clk 0:04:02.9]} 9. O-O {[%clk 0:04:35.1]} 9... f6 {[%clk
0:03:51.7]} 10. Nb5 {[%clk 0:04:33.5]} 10... Na6 {[%clk 0:03:48.9]} 11. Re1
{[%clk 0:04:28.5]} 11... fxe5 {[%clk 0:03:42.5]} 12. Rxe5 {[%clk 0:04:22.3]}
12... Bd6 {[%clk 0:03:38.8]} 13. h3 {[%clk 0:04:20.7]} 13... Qf4 {[%clk
0:03:28]} 14. Nxd6+ {[%clk 0:04:07.6]} 14... cxd6 {[%clk 0:03:26]} 15. Re1
{[%clk 0:04:05]} 15... O-O {[%clk 0:03:22.8]} 16. c3 {[%clk 0:04:01.3]} 16... e5
{[%clk 0:03:20.4]} 17. dxe5 {[%clk 0:04:00]} 17... dxe5 {[%clk 0:03:19]} 18.
Rxe5 {[%clk 0:03:58.9]} 18... Bxh3 {[%clk 0:03:13.5]} 19. gxh3 {[%clk
0:03:50.2]} 19... Rad8 {[%clk 0:03:04.5]} 20. Qe2 {[%clk 0:03:40.2]} 20... Nc5
{[%clk 0:02:53.6]} 21. Ne1 {[%clk 0:03:30.2]} 21... Qh4 {[%clk 0:02:41.3]} 22.
Bf5 {[%clk 0:03:22.6]} 22... b6 {[%clk 0:02:21.2]} 23. Qg4 {[%clk 0:03:12.3]}
23... Qf6 {[%clk 0:02:08.8]} 24. Qg6 {[%clk 0:03:04.1]} 24... Qxe5 {[%clk
0:02:03.6]} 25. Qh7+ {[%clk 0:03:00.5]} 25... Kf7 {[%clk 0:02:02.3]} 26. Nf3
{[%clk 0:02:54.9]} 26... Qf6 {[%clk 0:01:49.1]} 27. Re1 {[%clk 0:02:50.3]} 27...
Ne4 {[%clk 0:01:37.4]} 28. Bg6+ {[%clk 0:02:41.5]} 28... Qxg6+ {[%clk
0:01:34.5]} 29. Qxg6+ {[%clk 0:02:37]} 29... Kxg6 {[%clk 0:01:33.5]} 30. Ne5+
{[%clk 0:02:36.1]} 30... Kf6 {[%clk 0:01:27.5]} 31. Nc6 {[%clk 0:02:32.4]} 31...
Rde8 {[%clk 0:01:24.9]} 32. Nd4 {[%clk 0:02:29.4]} 32... Nd2 {[%clk 0:01:19.5]}
33. Rd1 {[%clk 0:02:26.3]} 33... Nc4 {[%clk 0:01:14.1]} 34. b3 {[%clk
0:02:24.6]} 34... Na3 {[%clk 0:01:10.5]} 35. Kg2 {[%clk 0:02:18.6]} 35... g5
{[%clk 0:01:08.2]} 36. Nf3 {[%clk 0:02:16.2]} 36... Rd8 {[%clk 0:01:05.3]} 37.
Rd4 {[%clk 0:02:13.2]} 37... Nb5 {[%clk 0:01:03.5]} 38. Rb4 {[%clk 0:02:08.9]}
38... Nxc3 {[%clk 0:01:01.9]} 39. a4 {[%clk 0:02:05]} 39... a5 {[%clk
0:01:00.2]} 40. Rxb6+ {[%clk 0:02:03]} 40... Kf5 {[%clk 0:00:59.2]} 41. Rxh6
{[%clk 0:02:00.9]} 41... g4 {[%clk 0:00:54.1]} 42. Nd4+ {[%clk 0:01:53.6]} 42...
Kg5 {[%clk 0:00:52]} 43. Ra6 {[%clk 0:01:49.3]} 43... gxh3+ {[%clk 0:00:48.3]}
44. Kxh3 {[%clk 0:01:48.5]} 44... Rh8+ {[%clk 0:00:47.1]} 45. Kg3 {[%clk
0:01:47.5]} 45... Rdg8 {[%clk 0:00:45.8]} 46. Kf3 {[%clk 0:01:45.5]} 46... Rh3+
{[%clk 0:00:43.8]} 47. Kg2 {[%clk 0:01:44.1]} 47... Kh4+ {[%clk 0:00:41.8]} 48.
Kf1 {[%clk 0:01:41.3]} 48... Ne4 {[%clk 0:00:38.4]} 49. Ke2 {[%clk 0:01:26.7]}
49... Rg2 {[%clk 0:00:30.1]} 50. Rh6+ {[%clk 0:01:20.3]} 50... Kg4 {[%clk
0:00:28.7]} 51. Rg6+ {[%clk 0:01:19]} 51... Kf4 {[%clk 0:00:23.6]} 52. Rxg2
{[%clk 0:01:17.6]} 52... Nc3+ {[%clk 0:00:21.4]} 53. Kd2 {[%clk 0:01:15.5]}
53... Ne4+ {[%clk 0:00:19.4]} 54. Kc2 {[%clk 0:01:14.6]} 54... Rc3+ {[%clk
0:00:18.2]} 55. Kb2 {[%clk 0:01:13.1]} 55... Nc5 {[%clk 0:00:15.3]} 56. Ne2+
{[%clk 0:01:11.9]} 56... Kf3 {[%clk 0:00:13.1]} 57. Nxc3 {[%clk 0:01:11.1]}
57... Kxg2 {[%clk 0:00:11.2]} 58. Nxd5 {[%clk 0:01:10.1]} 58... Nd3+ {[%clk
0:00:09.5]} 59. Kc3 {[%clk 0:01:08.4]} 59... Nxf2 {[%clk 0:00:09.2]} 60. Kc4
{[%clk 0:01:06]} 60... Ne4 {[%clk 0:00:07]} 61. Kb5 {[%clk 0:01:02.6]} 61... Kf3
{[%clk 0:00:06.4]} 62. Kxa5 {[%clk 0:01:01.3]} 1-0

[Event "Live Chess"]
[Site "Chess.com"]
[Date "2024.06.01"]
[Round "-"]
[White "Sokolik_UA"]
[Black "ProfPoisson"]
[Result "0-1"]
[WhiteElo "802"]
[BlackElo "1251"]
[TimeControl "300"]
[EndTime "11:53:45 PDT"]
[Termination "ProfPoisson won by checkmate"]

1. e4 {[%clk 0:04:58.1]} 1... e5 {[%clk 0:04:57.5]} 2. d4 {[%clk 0:04:56.5]}
2... exd4 {[%clk 0:04:55.2]} 3. Qxd4 {[%clk 0:04:55.2]} 3... Nc6 {[%clk
0:04:52.3]} 4. Qe3 {[%clk 0:04:54.8]} 4... Nf6 {[%clk 0:04:46.4]} 5. Nc3 {[%clk
0:04:54.1]} 5... Bb4 {[%clk 0:04:43.4]} 6. Bd2 {[%clk 0:04:53.1]} 6... O-O
{[%clk 0:04:41.4]} 7. O-O-O {[%clk 0:04:52]} 7... Re8 {[%clk 0:04:38.6]} 8. f3
{[%clk 0:04:51]} 8... d5 {[%clk 0:04:36.1]} 9. Bd3 {[%clk 0:04:47.5]} 9... d4
{[%clk 0:04:33.1]} 10. Qf4 {[%clk 0:04:45]} 10... dxc3 {[%clk 0:04:29.4]} 11.
Bxc3 {[%clk 0:04:44.4]} 11... Bxc3 {[%clk 0:04:26.4]} 12. bxc3 {[%clk 0:04:44]}
12... Qe7 {[%clk 0:04:21.8]} 13. Kd2 {[%clk 0:04:42.8]} 13... Be6 {[%clk
0:04:15.8]} 14. g4 {[%clk 0:04:35.5]} 14... Rad8 {[%clk 0:04:14.4]} 15. h4
{[%clk 0:04:34.1]} 15... Bc4 {[%clk 0:04:06.8]} 16. Ne2 {[%clk 0:04:31.9]} 16...
Bxd3 {[%clk 0:04:04.4]} 17. cxd3 {[%clk 0:04:31.5]} 17... Qd7 {[%clk 0:03:42.3]}
18. d4 {[%clk 0:04:27.3]} 18... Na5 {[%clk 0:03:32.9]} 19. Ke1 {[%clk
0:04:24.7]} 19... Nc4 {[%clk 0:03:28.6]} 20. h5 {[%clk 0:04:20.3]} 20... Nb2
{[%clk 0:03:04.2]} 21. Rd2 {[%clk 0:04:16.2]} 21... Qb5 {[%clk 0:02:56.6]} 22.
h6 {[%clk 0:04:11.8]} 22... Nd3+ {[%clk 0:02:55]} 23. Rxd3 {[%clk 0:04:06]}
23... Qxd3 {[%clk 0:02:53.4]} 24. hxg7 {[%clk 0:04:02.8]} 24... Qb1+ {[%clk
0:02:46]} 25. Nc1 {[%clk 0:03:59]} 25... Rxe4+ {[%clk 0:02:43.2]} 26. fxe4
{[%clk 0:03:57.9]} 26... Qxe4+ {[%clk 0:02:41.6]} 27. Ne2 {[%clk 0:03:54.2]}
27... Qb1+ {[%clk 0:02:36.7]} 28. Kf2 {[%clk 0:03:52.1]} 28... Qxh1 {[%clk
0:02:28.4]} 29. Qxf6 {[%clk 0:03:51]} 29... Qh2+ {[%clk 0:02:21]} 30. Ke1 {[%clk
0:03:47.5]} 30... Re8 {[%clk 0:02:12.8]} 31. Qf2 {[%clk 0:03:27.2]} 31... Qxf2+
{[%clk 0:02:04.4]} 32. Kxf2 {[%clk 0:03:26.2]} 32... Kxg7 {[%clk 0:02:03.4]} 33.
Kf3 {[%clk 0:03:21.1]} 33... Rxe2 {[%clk 0:02:00.2]} 34. Kxe2 {[%clk 0:03:20.1]}
34... Kg6 {[%clk 0:01:59.7]} 35. Kf3 {[%clk 0:03:19.7]} 35... f5 {[%clk
0:01:58.1]} 36. gxf5+ {[%clk 0:03:17.3]} 36... Kxf5 {[%clk 0:01:56.8]} 37. Ke3
{[%clk 0:03:16.6]} 37... b6 {[%clk 0:01:52.8]} 38. Kd3 {[%clk 0:03:15.3]} 38...
a5 {[%clk 0:01:51]} 39. a3 {[%clk 0:03:14.3]} 39... h5 {[%clk 0:01:49.3]} 40.
Ke2 {[%clk 0:03:13.1]} 40... Kf4 {[%clk 0:01:47.6]} 41. Kf2 {[%clk 0:03:12.6]}
41... Ke4 {[%clk 0:01:44]} 42. Ke2 {[%clk 0:03:09.6]} 42... h4 {[%clk
0:01:42.1]} 43. Kf2 {[%clk 0:03:05.4]} 43... Kd3 {[%clk 0:01:40.9]} 44. Kf3
{[%clk 0:03:04.1]} 44... Kxc3 {[%clk 0:01:39.8]} 45. Kg4 {[%clk 0:03:03.7]}
45... Kxd4 {[%clk 0:01:38.8]} 46. Kxh4 {[%clk 0:03:03.2]} 46... c5 {[%clk
0:01:37.8]} 47. Kg3 {[%clk 0:03:02]} 47... c4 {[%clk 0:01:37.7]} 48. Kf2 {[%clk
0:03:01.6]} 48... Kd3 {[%clk 0:01:36.2]} 49. Ke1 {[%clk 0:03:01.2]} 49... Kc2
{[%clk 0:01:27.7]} 50. Ke2 {[%clk 0:03:00.1]} 50... b5 {[%clk 0:01:23.4]} 51.
Ke3 {[%clk 0:02:59.1]} 51... b4 {[%clk 0:01:22.5]} 52. Kd4 {[%clk 0:02:58.6]}
52... bxa3 {[%clk 0:01:20]} 53. Kxc4 {[%clk 0:02:57.9]} 53... a2 {[%clk
0:01:19.6]} 54. Kb5 {[%clk 0:02:57]} 54... a1=Q {[%clk 0:01:15]} 55. Ka6 {[%clk
0:02:56.4]} 55... Qe5 {[%clk 0:01:09.2]} 56. Kb6 {[%clk 0:02:54.9]} 56... Kc3
{[%clk 0:01:08.7]} 57. Ka6 {[%clk 0:02:54]} 57... Kb4 {[%clk 0:01:06.9]} 58. Kb6
{[%clk 0:02:53.6]} 58... Qc5+ {[%clk 0:01:05.3]} 59. Ka6 {[%clk 0:02:52.5]}
59... Qc6+ {[%clk 0:01:03]} 60. Ka7 {[%clk 0:02:51.5]} 60... Qd6 {[%clk
0:01:00.7]} 61. Kb7 {[%clk 0:02:50.6]} 61... Kb5 {[%clk 0:00:58.8]} 62. Ka7
{[%clk 0:02:48]} 62... Qc7+ {[%clk 0:00:52]} 63. Ka8 {[%clk 0:02:46.6]} 63...
Qd7 {[%clk 0:00:50.6]} 64. Kb8 {[%clk 0:02:45.4]} 64... Kb6 {[%clk 0:00:49.2]}
65. Ka8 {[%clk 0:02:44.4]} 65... Qc8# {[%clk 0:00:47.4]} 0-1

[Event "Live Chess"]
[Site "Chess.com"]
[Date "2024.06.01"]
[Round "-"]
[White "Nathaniel250"]
[Black "degringolade64"]
[Result "0-1"]
[WhiteElo "1469"]
[BlackElo "2047"]
[TimeControl "300"]
[EndTime "11:53:48 PDT"]
[Termination "degringolade64 won by resignation"]

1. c4 {[%clk 0:04:57.5]} 1... e5 {[%clk 0:04:58.7]} 2. Nc3 {[%clk 0:04:55.9]}
2... Nf6 {[%clk 0:04:58.4]} 3. e4 {[%clk 0:04:54]} 3... Bb4 {[%clk 0:04:55.9]}
4. Nge2 {[%clk 0:04:50.3]} 4... O-O {[%clk 0:04:50.7]} 5. g3 {[%clk 0:04:49.4]}
5... b5 {[%clk 0:04:46.8]} 6. cxb5 {[%clk 0:04:45]} 6... a6 {[%clk 0:04:46.4]}
7. bxa6 {[%clk 0:04:43.6]} 7... Bxa6 {[%clk 0:04:41.8]} 8. d3 {[%clk 0:04:32.5]}
8... c6 {[%clk 0:04:34.8]} 9. Bg2 {[%clk 0:04:30.4]} 9... d5 {[%clk 0:04:32.7]}
10. exd5 {[%clk 0:04:29.2]} 10... cxd5 {[%clk 0:04:32.6]} 11. O-O {[%clk
0:04:25.6]} 11... Nc6 {[%clk 0:04:23.8]} 12. a3 {[%clk 0:04:20.4]} 12... Ba5
{[%clk 0:04:06.7]} 13. b4 {[%clk 0:04:19.3]} 13... Bxb4 {[%clk 0:03:45.9]} 14.
axb4 {[%clk 0:04:17.8]} 14... Nxb4 {[%clk 0:03:45.6]} 15. Qb3 {[%clk 0:04:03.4]}
15... Rb8 {[%clk 0:03:13.2]} 16. Qd1 {[%clk 0:03:36.4]} 16... Bxd3 {[%clk
0:03:10.5]} 17. Re1 {[%clk 0:03:19.1]} 17... d4 {[%clk 0:02:57.9]} 18. Na4
{[%clk 0:03:06]} 18... Bc2 {[%clk 0:02:55.5]} 19. Qd2 {[%clk 0:03:01.2]} 19...
Qa5 {[%clk 0:02:31.9]} 20. Ba3 {[%clk 0:02:22.2]} 20... Bxa4 {[%clk 0:02:27.1]}
21. Bxb4 {[%clk 0:02:15.6]} 21... Qxb4 {[%clk 0:02:25.8]} 22. Qa2 {[%clk
0:01:43.7]} 22... Bd7 {[%clk 0:02:15]} 23. Bd5 {[%clk 0:01:39.9]} 23... Qd6
{[%clk 0:02:11.7]} 24. Bc4 {[%clk 0:01:29.8]} 24... Ne4 {[%clk 0:02:02.8]} 25.
Red1 {[%clk 0:01:15.9]} 25... Qf6 {[%clk 0:01:59.2]} 26. f4 {[%clk 0:01:01.3]}
26... exf4 {[%clk 0:01:51.9]} 27. Nxf4 {[%clk 0:01:01.2]} 27... Nc3 {[%clk
0:01:46.8]} 28. Qd2 {[%clk 0:00:40.4]} 28... Nxd1 {[%clk 0:01:43.8]} 29. Qxd1
{[%clk 0:00:40.3]} 29... Be6 {[%clk 0:01:36]} 30. Nxe6 {[%clk 0:00:37.7]} 30...
fxe6 {[%clk 0:01:35.9]} 31. Rc1 {[%clk 0:00:30.8]} 31... Rb2 {[%clk 0:01:32.6]}
32. Rc2 {[%clk 0:00:25.9]} 0-1

[Event "Live Chess"]
[Site "Chess.com"]
[Date "2024.06.01"]
[Round "-"]
[White "Sweet-O"]
[Black "OurKnightAtTheOpera"]
[Result "0-1"]
[WhiteElo "1548"]
[BlackElo "2024"]
[TimeControl "300"]
[EndTime "11:53:53 PDT"]
[Termination "OurKnightAtTheOpera won by resignation"]

1. d4 {[%clk 0:04:58.2]} 1... d5 {[%clk 0:04:59.2]} 2. Nc3 {[%clk 0:04:57.6]}
2... Nf6 {[%clk 0:04:57.6]} 3. Bf4 {[%clk 0:04:57]} 3... c5 {[%clk 0:04:57]} 4.
e3 {[%clk 0:04:56.2]} 4... Nc6 {[%clk 0:04:55.4]} 5. Nb5 {[%clk 0:04:54.2]} 5...
e5 {[%clk 0:04:49]} 6. dxe5 {[%clk 0:04:54.1]} 6... g5 {[%clk 0:04:23.7]} 7.
Bxg5 {[%clk 0:04:12]} 7... Nxe5 {[%clk 0:04:22.2]} 8. Bxf6 {[%clk 0:04:02.8]}
8... Qxf6 {[%clk 0:04:09.9]} 9. Qxd5 {[%clk 0:03:54]} 9... Be6 {[%clk
0:03:54.1]} 10. Nc7+ {[%clk 0:03:45.1]} 10... Ke7 {[%clk 0:03:52.8]} 11. Qxc5+
{[%clk 0:03:40.7]} 11... Kd7 {[%clk 0:03:52.1]} 12. Bb5+ {[%clk 0:03:27.7]}
12... Nc6 {[%clk 0:03:41.4]} 13. Bxc6+ {[%clk 0:02:51.1]} 13... bxc6 {[%clk
0:03:38.9]} 14. Qa5 {[%clk 0:02:44.8]} 14... Qxb2 {[%clk 0:03:30.7]} 15. Rd1+
{[%clk 0:02:32.6]} 15... Kc8 {[%clk 0:03:20.8]} 16. Nxa8 {[%clk 0:02:11.8]}
16... Bb4+ {[%clk 0:03:18.6]} 17. Qxb4 {[%clk 0:02:07.5]} 17... Qxb4+ {[%clk
0:03:16.7]} 18. Ke2 {[%clk 0:02:05.5]} 18... Qc4+ {[%clk 0:03:10.2]} 19. Ke1
{[%clk 0:02:01.6]} 19... Qc3+ {[%clk 0:03:07.7]} 20. Ke2 {[%clk 0:02:00.1]}
20... Bc4+ {[%clk 0:03:05.4]} 21. Kf3 {[%clk 0:01:58.3]} 21... Qxc2 {[%clk
0:03:02.8]} 22. Rd6 {[%clk 0:01:29.2]} 22... Qf5+ {[%clk 0:02:55.2]} 0-1

[Event "Live Chess"]
[Site "Chess.com"]
[Date "2024.06.01"]
[Round "-"]
[White "booktrunk"]
[Black "RamsayFlayer"]
[Result "0-1"]
[WhiteElo "1370"]
[BlackElo "1954"]
[TimeControl "300"]
[EndTime "11:53:55 PDT"]
[Termination "RamsayFlayer won by resignation"]

1. d4 {[%clk 0:04:56.1]} 1... d5 {[%clk 0:04:58.7]} 2. Nc3 {[%clk 0:04:56]} 2...
c5 {[%clk 0:04:56.1]} 3. dxc5 {[%clk 0:04:45.6]} 3... e6 {[%clk 0:04:48.5]} 4.
b4 {[%clk 0:04:39.3]} 4... a5 {[%clk 0:04:43.5]} 5. Ba3 {[%clk 0:04:34.1]} 5...
axb4 {[%clk 0:04:37.5]} 6. Bxb4 {[%clk 0:04:33]} 6... b6 {[%clk 0:04:36.8]} 7.
a3 {[%clk 0:04:27.1]} 7... bxc5 {[%clk 0:04:31.7]} 8. Bxc5 {[%clk 0:04:18.9]}
8... Bxc5 {[%clk 0:04:30.1]} 9. Nf3 {[%clk 0:04:15.2]} 9... Qa5 {[%clk
0:04:27.3]} 10. Ng1 {[%clk 0:04:15.1]} 10... Qxc3+ {[%clk 0:04:22.9]} 11. Qd2
{[%clk 0:04:12.9]} 11... Qxa1+ {[%clk 0:04:22.4]} 0-1

[Event "Live Chess"]
[Site "Chess.com"]
[Date "2024.06.01"]
[Round "-"]
[White "Stanbad1"]
[Black "Ninifu"]
[Result "1-0"]
[WhiteElo "2692"]
[BlackElo "2010"]
[TimeControl "300"]
[EndTime "11:54:07 PDT"]
[Termination "Stanbad1 won by resignation"]

1. d4 {[%clk 0:04:58.1]} 1... Nf6 {[%clk 0:04:56.9]} 2. Nc3 {[%clk 0:04:56.7]}
2... d5 {[%clk 0:04:51.8]} 3. Bf4 {[%clk 0:04:52]} 3... c6 {[%clk 0:04:50.3]} 4.
e3 {[%clk 0:04:50.9]} 4... g6 {[%clk 0:04:49.4]} 5. h4 {[%clk 0:04:49.4]} 5...
Bg7 {[%clk 0:04:48.4]} 6. Be2 {[%clk 0:04:48.6]} 6... h5 {[%clk 0:04:46.6]} 7.
Nf3 {[%clk 0:04:47.4]} 7... Nbd7 {[%clk 0:04:45.5]} 8. Ne5 {[%clk 0:04:46.8]}
8... Nxe5 {[%clk 0:04:43.6]} 9. Bxe5 {[%clk 0:04:46.2]} 9... O-O {[%clk
0:04:38.8]} 10. Bd3 {[%clk 0:04:44.5]} 10... Ng4 {[%clk 0:04:37.5]} 11. Bxg7
{[%clk 0:04:42.9]} 11... Kxg7 {[%clk 0:04:36.7]} 12. Qe2 {[%clk 0:04:42.3]}
12... e5 {[%clk 0:04:33.7]} 13. dxe5 {[%clk 0:04:40.9]} 13... Nxe5 {[%clk
0:04:32.2]} 14. O-O-O {[%clk 0:04:40.5]} 14... Nxd3+ {[%clk 0:04:29.4]} 15. Qxd3
{[%clk 0:04:40.4]} 15... Bf5 {[%clk 0:04:28.6]} 16. Qd4+ {[%clk 0:04:39.3]}
16... Qf6 {[%clk 0:04:26.7]} 17. Qf4 {[%clk 0:04:38.7]} 17... Bg4 {[%clk
0:04:20.5]} 18. Qxf6+ {[%clk 0:04:35.7]} 18... Kxf6 {[%clk 0:04:19.2]} 19. f3
{[%clk 0:04:34.9]} 19... Be6 {[%clk 0:04:09.9]} 20. e4 {[%clk 0:04:33.6]} 20...
dxe4 {[%clk 0:04:06.5]} 21. Nxe4+ {[%clk 0:04:32]} 21... Kg7 {[%clk 0:04:05.9]}
22. Nc5 {[%clk 0:04:30.4]} 22... Bd5 {[%clk 0:03:41.2]} 23. Nxb7 {[%clk
0:04:26.2]} 23... Rab8 {[%clk 0:03:39.7]} 24. Nc5 {[%clk 0:04:25.2]} 24... Rb5
{[%clk 0:03:33.9]} 25. Nd3 {[%clk 0:04:21.3]} 25... a5 {[%clk 0:03:27.4]} 26. b3
{[%clk 0:04:19.3]} 26... a4 {[%clk 0:03:21.1]} 27. c4 {[%clk 0:04:18.1]} 27...
axb3 {[%clk 0:03:12.1]} 28. cxb5 {[%clk 0:04:14.8]} 28... bxa2 {[%clk
0:03:10.2]} 29. Kb2 {[%clk 0:04:14.5]} 29... Rb8 {[%clk 0:03:05.1]} 30. Ka1
{[%clk 0:04:09.2]} 30... Rxb5 {[%clk 0:03:03.8]} 31. Rd2 {[%clk 0:04:08.5]}
31... Rb3 {[%clk 0:03:00.9]} 32. Rc1 {[%clk 0:04:04.7]} 1-0